bitfinex/quotes_SOLUSD_20250806
["timestamp","ask_amount","ask_price","bid_price","bid_amount"]
[1754504021250,0.03,169.98,169.97,48.28195266]
[1754504022452,0.03,169.98,169.97,54.16534384]
[1754504023953,0.03,169.98,169.97,48.09339118]
[1754504024126,0.03,169.98,169.97,53.49534384]
[1754504024328,0.03,169.98,169.97,54.16534384]
[1754504025449,0.03,169.98,169.97,53.49534384]
[1754504027539,0.03,169.98,169.97,48.09339118]
[1754504027740,0.03,169.98,169.97,54.16534384]
[1754504028139,0.03,169.98,169.97,47.42339118]
[1754504028345,0.03,169.98,169.97,53.49534384]
[1754504028544,0.73,169.98,169.97,11.95534384]
[1754504028844,0.73,169.98,169.97,47.40339118]
[1754504029160,0.73,169.98,169.96,5.88371854]
[1754504029355,0.73,169.98,169.97,41.52]
[1754504029530,0.73,169.98,169.97,47.40339118]
[1754504030462,0.01,169.98,169.97,53.47534384]
[1754504031262,0.01,169.98,169.97,69.28155941]
[1754504036774,0.01,169.98,169.97,11.95534384]
[1754504037071,0.72,169.98,169.97,53.47534384]
[1754504037481,0.01,169.98,169.97,53.47534384]
[1754504038179,0.72,169.98,169.97,53.47534384]
[1754504038478,2.95682488,170.01,169.97,47.40339118]
[1754504038660,148.85682488,170.01,169.97,53.47534384]
[1754504038857,151.97195266,170.01,169.97,5.88339118]
[1754504039487,145.9,170.01,169.98,41.52]
[1754504040169,6.07195266,170.0,169.98,41.52]
[1754504040368,6.07195266,170.0,169.98,47.40304118]
[1754504040568,0.71,169.99,169.98,47.40304118]
[1754504040765,0.71,169.99,169.98,41.52]
[1754504040968,6.78195266,169.99,169.98,41.52]
[1754504041281,6.78195266,169.99,169.97,41.52]
[1754504041579,0.71,169.98,169.97,41.52]
[1754504042073,0.74,169.98,169.97,41.52]
[1754504043377,0.74,169.98,169.97,47.40339118]
[1754504044075,0.03,169.98,169.97,47.40339118]
[1754504045189,6.81195266,169.98,169.97,41.52]
[1754504045356,6.81195266,169.98,169.96,0.06]
[1754504045559,6.78195266,169.97,169.96,0.06]
[1754504046178,0.71,169.97,169.96,0.06]
[1754504046980,6.78195266,169.97,169.96,0.06]
[1754504048101,0.03,169.98,169.96,0.06]
[1754504048296,6.10195266,169.98,169.96,0.06]
[1754504048492,6.81195266,169.98,169.96,0.06]
[1754504049373,0.74,169.98,169.96,0.06]
[1754504049574,6.07195266,169.97,169.96,0.06]
[1754504049756,6.78195266,169.97,169.96,0.06]
[1754504050572,10.74443448,169.97,169.96,0.06]
[1754504051484,4.67248182,169.97,169.96,0.06]
[1754504051682,10.74443448,169.97,169.96,0.06]
[1754504052761,10.03443448,169.97,169.96,0.06]
[1754504053687,3.96248182,169.97,169.96,0.06]
[1754504053988,10.03443448,169.97,169.96,0.06]
[1754504054673,26.03,169.98,169.96,0.76]
[1754504054883,32.10195266,169.98,169.96,0.76]
[1754504055685,32.10195266,169.98,169.96,6.6436858]
[1754504055889,3.9633958,169.97,169.96,0.06]
[1754504056987,26.74,169.98,169.96,5.94373734]
[1754504057181,26.03,169.98,169.96,5.94373734]
[1754504057568,26.03,169.98,169.96,6.64373734]
[1754504057892,0.03,169.98,169.97,42.2]
[1754504058089,3.9932817,169.98,169.97,42.2]
[1754504058994,3.9932817,169.98,169.97,48.08339118]
[1754504059774,0.03,169.98,169.97,48.08339118]
[1754504060987,0.03,169.98,169.97,54.15534384]
[1754504061595,0.03,169.98,169.97,48.08339118]
[1754504061787,0.03,169.98,169.97,54.15534384]
[1754504062773,0.03,169.98,169.97,47.38339118]
[1754504062976,10.73528961,169.98,169.96,47.44366687]
[1754504063196,6.77195266,169.98,169.96,47.44366687]
[1754504063399,6.77195266,169.98,169.97,0.06]
[1754504063601,10.73557581,169.98,169.97,0.06]
[1754504063776,4.66362315,169.98,169.97,0.06]
[1754504063979,3.99362315,169.98,169.97,0.06]
[1754504066194,149.89362315,169.98,169.97,0.06]
[1754504066399,156.63557581,169.98,169.97,0.06]
[1754504068294,155.96557581,169.98,169.97,0.06]
[1754504068496,149.89362315,169.98,169.97,0.06]
[1754504069294,156.63557581,169.98,169.97,0.06]
[1754504071594,149.89362315,169.98,169.97,0.06]
[1754504071771,155.96557581,169.98,169.97,0.06]
[1754504071977,156.63557581,169.98,169.97,0.06]
[1754504072195,16.90294401,169.98,169.97,0.06]
[1754504074205,10.73557581,169.98,169.97,0.06]
[1754504074379,10.06557581,169.98,169.97,0.06]
[1754504075607,29.99362315,169.98,169.97,0.06]
[1754504075807,3.99362315,169.98,169.97,0.72]
[1754504076183,3.99362315,169.98,169.97,0.06]
[1754504076387,10.06557581,169.98,169.97,0.06]
[1754504077305,10.06557581,169.98,169.97,0.72]
[1754504077689,3.99362315,169.98,169.97,6.60339118]
[1754504077883,10.06557581,169.98,169.97,6.60339118]
[1754504078607,3.99362315,169.98,169.97,6.60339118]
[1754504079917,10.06557581,169.98,169.97,0.06]
[1754504080899,10.73557581,169.98,169.97,0.06]
[1754504081619,10.06557581,169.98,169.97,0.06]
[1754504083208,0.03,169.98,169.97,0.72]
[1754504083613,0.03,169.98,169.97,6.79195266]
[1754504084415,0.03,169.98,169.97,6.60339118]
[1754504084941,3.99851423,169.98,169.97,6.60339118]
[1754504085108,0.03,169.98,169.97,6.60339118]
[1754504089645,0.03,169.98,169.97,5.94339118]
[1754504089808,10.06956864,169.98,169.97,5.94339118]
[1754504090118,10.06956864,169.98,169.97,0.06]
[1754504090922,10.06956864,169.98,169.97,5.94339118]
[1754504091322,10.06956864,169.98,169.97,0.06]
[1754504092120,3.99761598,169.98,169.97,0.73]
[1754504092324,0.03,169.98,169.97,0.73]
[1754504092939,0.03,169.98,169.97,6.61339118]
[1754504093132,3.99763141,169.98,169.97,6.61339118]
[1754504093632,3.99763141,169.98,169.97,5.94339118]
[1754504094012,0.03,169.98,169.97,5.94339118]
[1754504094519,10.06951844,169.98,169.97,0.06]
[1754504094718,10.76951844,169.98,169.97,0.06]
[1754504094924,10.06951844,169.98,169.97,0.06]
[1754504095751,3.99756578,169.98,169.97,0.06]
[1754504095922,3.99756578,169.98,169.97,0.73]
[1754504096254,10.76951844,169.98,169.97,0.06]
[1754504096749,10.06951844,169.98,169.97,0.06]
[1754504096951,3.99756578,169.98,169.97,0.06]
[1754504097157,3.99756578,169.98,169.97,0.73]
[1754504097927,0.03,169.98,169.97,6.61339118]
[1754504100056,0.03,169.98,169.97,48.07339118]
[1754504100255,0.03,169.98,169.97,54.14534384]
[1754504101454,1e-08,169.99,169.97,69.25155941]
[1754504101655,0.2,170.02,170.0,15.10621557]
[1754504101656,1e-08,170.02,170.0,15.10621557]
[1754504101834,1e-08,170.02,170.01,62.63816823]
[1754504102431,1e-08,170.02,170.01,63.30816823]
[1754504102744,1e-08,170.02,170.01,48.20195266]
[1754504102946,1e-08,170.02,170.01,63.30816823]
[1754504103547,1e-08,170.02,170.01,69.19017517]
[1754504103953,1e-08,170.03,170.01,69.19017517]
[1754504104138,1e-08,170.03,170.02,6.74195266]
[1754504104955,1e-08,170.03,170.01,62.44822251]
[1754504104956,1e-08,170.03,170.01,47.34200694]
[1754504105354,1e-08,170.03,170.02,41.46]
[1754504105756,1e-08,170.03,170.02,47.34166098]
[1754504107868,1e-08,170.03,170.02,48.01166098]
[1754504108659,1e-08,170.03,170.02,47.34166098]
[1754504109376,1e-08,170.03,170.02,48.01166098]
[1754504109846,1e-08,170.03,170.02,54.08361364]
[1754504117455,1e-08,170.03,170.02,53.41361364]
[1754504117650,1e-08,170.03,170.02,5.88166098]
[1754504117886,1e-08,170.03,170.0,5.88204405]
[1754504117887,0.70000001,170.03,170.0,5.88204405]
[1754504118081,1e-08,170.03,170.01,41.44]
[1754504119256,1e-08,170.03,170.01,48.18195266]
[1754504119588,1e-08,170.03,170.02,12.62361364]
[1754504123076,1e-08,170.03,170.02,11.95361364]
[1754504124773,1e-08,170.03,170.02,5.88166098]
[1754504125083,1e-08,170.03,170.02,12.62361364]
[1754504128195,1e-08,170.04,170.02,12.62361364]
[1754504128395,1e-08,170.04,170.03,48.16195266]
[1754504129279,1e-08,170.04,170.03,54.04326772]
[1754504129999,1e-08,170.04,170.03,53.37326772]
[1754504132612,1e-08,170.04,170.03,54.04326772]
[1754504133082,1e-08,170.04,170.03,47.30131506]
[1754504133281,1e-08,170.04,170.03,53.37326772]
[1754504133482,1e-08,170.04,170.03,54.04326772]
[1754504136291,1e-08,170.05,170.03,54.04326772]
[1754504136493,1e-08,170.05,170.04,47.84816823]
[1754504136889,1e-08,170.05,170.04,53.72913741]
[1754504139897,1e-08,170.05,170.04,38.62292184]
[1754504140512,1e-08,170.05,170.04,53.72913741]
[1754504145294,1e-08,170.05,170.04,53.05913741]
[1754504145694,1e-08,170.05,170.04,37.95292184]
[1754504149996,1e-08,170.05,170.04,38.62292184]
[1754504150426,1e-08,170.05,170.04,53.72913741]
[1754504151215,1e-08,170.05,170.04,54.01346055]
[1754504154603,1e-08,170.05,170.04,53.34346055]
[1754504154791,1e-08,170.05,170.04,54.01346055]
[1754504156336,1e-08,170.05,170.04,37.95292184]
[1754504157188,1e-08,170.05,170.04,53.72913741]
[1754504158031,1e-08,170.05,170.04,37.95292184]
[1754504161734,1e-08,170.05,170.04,38.62292184]
[1754504162901,1e-08,170.05,170.04,37.95292184]
[1754504163106,0.71000001,170.05,170.04,11.95292184]
[1754504163306,0.71000001,170.05,170.04,53.33292184]
[1754504163814,0.71000001,170.05,170.02,0.06]
[1754504163815,6.78195267,170.05,170.02,0.06]
[1754504164003,6.78195267,170.05,170.03,41.38]
[1754504164004,0.71,170.04,170.03,41.38]
[1754504165308,1e-08,170.05,170.03,47.45195266]
[1754504165511,1e-08,170.05,170.03,41.38]
[1754504165732,0.71000001,170.05,170.03,47.45195266]
[1754504166240,0.71000001,170.05,170.04,5.88096918]
[1754504166443,1e-08,170.05,170.04,5.88096918]
[1754504166657,1e-08,170.05,170.04,11.95292184]
[1754504166825,0.71000001,170.05,170.04,5.88096918]
[1754504167337,1e-08,170.05,170.04,11.95292184]
[1754504168141,1e-08,170.05,170.04,12.62292184]
[1754504174238,0.71000001,170.05,170.04,5.88096918]
[1754504174615,0.71000001,170.05,170.04,47.26096918]
[1754504175016,1e-08,170.05,170.04,47.26096918]
[1754504175234,1e-08,170.05,170.04,53.33292184]
[1754504175644,1e-08,170.05,170.04,54.00292184]
[1754504175940,1e-08,170.05,170.04,53.33292184]
[1754504177757,1e-08,170.05,170.04,47.26096918]
[1754504177934,0.71000001,170.05,170.04,47.26096918]
[1754504179949,0.71000001,170.05,170.04,53.33292184]
[1754504180316,0.71000001,170.05,170.04,47.26096918]
[1754504181633,0.71000001,170.05,170.04,5.88096918]
[1754504181833,0.71000001,170.05,170.04,47.26096918]
[1754504182325,6.78195267,170.05,170.03,41.38]
[1754504182540,0.72,170.04,170.03,41.38]
[1754504183056,6.79195266,170.04,170.02,0.06]
[1754504183233,0.72,170.04,170.02,0.06]
[1754504183431,6.79195266,170.03,170.02,0.06]
[1754504185335,0.72,170.03,170.02,0.06]
[1754504185534,6.79195267,170.05,170.02,0.06]
[1754504185856,0.72,170.04,170.02,0.06]
[1754504186033,0.72,170.04,170.02,5.94166098]
[1754504186236,0.72,170.03,170.02,5.94166098]
[1754504188360,6.07195267,170.05,170.02,5.94166098]
[1754504188545,6.79195267,170.05,170.02,5.94166098]
[1754504188867,0.72,170.04,170.02,5.94166098]
[1754504189967,6.79195266,170.03,170.02,5.94166098]
[1754504190141,6.79195266,170.03,170.02,0.06]
[1754504190550,0.72,170.03,170.02,0.06]
[1754504190749,6.79195266,170.03,170.02,0.06]
[1754504190949,7.0762758,170.03,170.02,0.06]
[1754504193144,28.06380643,170.03,170.02,0.06]
[1754504193465,22.18249137,170.03,170.02,0.06]
[1754504195365,6.07195266,170.03,170.02,0.06]
[1754504195565,6.79195266,170.03,170.02,0.06]
[1754504196777,7.0762758,170.03,170.02,0.06]
[1754504197784,41.38,170.04,170.02,0.06]
[1754504198079,47.45195266,170.04,170.02,0.06]
[1754504198660,6.07195266,170.04,170.02,0.06]
[1754504198969,26.00000001,170.05,170.02,0.74]
[1754504199285,32.07195267,170.05,170.02,0.74]
[1754504199574,32.07195267,170.05,170.03,5.88131506]
[1754504199979,6.79195266,170.04,170.03,5.88131506]
[1754504200274,6.07195266,170.04,170.03,5.88131506]
[1754504200839,32.07195267,170.05,170.03,5.88131506]
[1754504201046,32.79195267,170.05,170.03,5.88131506]
[1754504201344,6.07195266,170.04,170.03,5.88131506]
[1754504201766,6.07195266,170.04,170.02,5.94166098]
[1754504202146,1e-08,170.05,170.03,0.68]
[1754504202349,1e-08,170.05,170.04,0.68]
[1754504203357,1e-08,170.05,170.04,6.75195266]
[1754504203749,1e-08,170.05,170.04,12.63292184]
[1754504205466,1e-08,170.05,170.04,6.56096918]
[1754504205778,1e-08,170.05,170.04,12.63292184]
[1754504206962,1e-08,170.05,170.04,6.56096918]
[1754504207161,1e-08,170.05,170.04,12.63292184]
[1754504208078,1e-08,170.05,170.04,6.56096918]
[1754504208258,1e-08,170.05,170.04,5.88096918]
[1754504208461,1e-08,170.05,170.04,12.63292184]
[1754504208970,1e-08,170.05,170.04,6.56096918]
[1754504209162,1e-08,170.05,170.04,5.88096918]
[1754504214368,1e-08,170.05,170.03,5.88124591]
[1754504214369,6.75195267,170.05,170.03,5.88124591]
[1754504214680,6.75195266,170.04,170.03,5.88124591]
[1754504214983,0.28432314,170.03,170.02,5.94164327]
[1754504215160,6.3562758,170.03,170.02,5.94164327]
[1754504215354,6.3562758,170.03,170.02,0.06]
[1754504215564,6.07195266,170.04,170.02,5.94166098]
[1754504216061,7.0362758,170.03,170.02,0.06]
[1754504216377,15.10621557,170.02,170.01,0.06]
[1754504216590,19.73974736,170.02,170.01,0.06]
[1754504216760,67.19170002,170.02,170.01,0.06]
[1754504217374,22.14249137,170.02,170.01,0.06]
[1754504218374,31.97768018,170.02,170.01,0.06]
[1754504219180,38.04963284,170.02,170.01,0.06]
[1754504219788,31.97768018,170.02,170.01,0.06]
[1754504220671,34.33554518,170.02,170.01,0.06]
[1754504221061,40.40749784,170.02,170.01,0.06]
[1754504221265,26.0,169.98,169.97,0.06]
[1754504221463,92.81520682,169.98,169.97,0.06]
[1754504221666,93.49520682,169.98,169.97,0.06]
[1754504222370,99.37825188,169.98,169.97,0.06]
[1754504223390,93.49520682,169.98,169.97,0.06]
[1754504223768,99.37825188,169.98,169.97,0.06]
[1754504224671,101.73653388,169.98,169.97,0.06]
[1754504225679,95.85348882,169.98,169.97,0.06]
[1754504227298,91.90077337,169.98,169.97,0.06]
[1754504227868,97.78381843,169.98,169.97,0.06]
[1754504229165,101.72772468,169.98,169.97,0.06]
[1754504233374,101.04772468,169.98,169.97,0.06]
[1754504233576,95.16467962,169.98,169.97,0.06]
[1754504233781,101.04772468,169.98,169.97,0.06]
[1754504236106,101.72772468,169.98,169.97,0.06]
[1754504236604,97.10381843,169.98,169.97,0.06]
[1754504236995,101.71951714,169.98,169.97,0.06]
[1754504237370,97.10381843,169.98,169.97,0.06]
[1754504237570,91.22077337,169.98,169.97,0.06]
[1754504237798,97.10381843,169.98,169.97,0.06]
[1754504238005,91.22077337,169.98,169.97,0.06]
[1754504238309,97.10381843,169.98,169.97,0.06]
[1754504239003,91.22077337,169.98,169.97,0.06]
[1754504240473,88.86249137,169.98,169.97,0.76]
[1754504240674,15.10621557,169.99,169.97,0.76]
[1754504240886,41.4,169.98,169.97,0.76]
[1754504241286,62.57816823,169.99,169.97,0.76]
[1754504241996,0.03,170.02,169.97,6.83195266]
[1754504242206,41.4,170.01,169.98,5.88304506]
[1754504242508,41.43,170.02,169.99,0.7]
[1754504244607,47.50195266,170.02,170.0,6.58235294]
[1754504245403,41.43,170.02,170.0,6.58235294]
[1754504245700,47.50195266,170.02,170.0,6.58235294]
[1754504248191,41.43,170.02,170.0,6.58235294]
[1754504248592,0.03,170.02,170.01,0.7]
[1754504248793,41.43,170.02,170.01,0.7]
[1754504248994,41.43,170.02,170.01,6.58200694]
[1754504249814,41.43,170.02,169.97,14.76832247]
[1754504249815,41.10621557,169.98,169.97,0.06]
[1754504250025,88.86249137,169.98,169.97,0.06]
[1754504250196,93.49897013,169.98,169.97,0.06]
[1754504250705,95.85739113,169.98,169.97,0.06]
[1754504251212,101.74043619,169.98,169.97,0.06]
[1754504252386,53.75739113,169.98,169.97,0.06]
[1754504252589,49.82091237,169.98,169.97,0.06]
[1754504252892,2.358421,169.98,169.97,6.83195266]
[1754504253299,41.4,170.01,169.97,6.83195266]
[1754504253515,41.4,170.01,169.98,0.7]
[1754504254035,47.47195266,170.01,169.99,0.7]
[1754504254687,47.47195266,170.01,169.99,6.58235695]
[1754504255509,0.03,170.0,169.99,6.58235695]
[1754504259410,3.98380304,170.0,169.99,6.58235695]
[1754504260322,0.03,170.0,169.99,6.58235695]
[1754504262505,3.98585042,170.0,169.99,6.58235695]
[1754504262705,10.05780308,170.0,169.99,0.7]
[1754504262906,10.05780308,170.0,169.98,5.88282993]
[1754504263114,10.05780308,170.0,169.98,6.58282993]
[1754504263328,3.98585042,170.0,169.98,5.88282993]
[1754504263535,0.03,170.0,169.99,0.7]
[1754504265117,0.03,170.0,169.99,6.58269898]
[1754504266439,0.03,170.0,169.99,0.7]
[1754504266738,3.98614243,170.0,169.99,0.7]
[1754504267108,10.05809509,170.0,169.98,5.88291496]
[1754504267835,10.05809509,170.0,169.98,6.58291496]
[1754504268003,10.05809509,170.0,169.98,0.7]
[1754504268840,10.05809509,170.0,169.98,6.58300638]
[1754504269619,10.05809509,170.0,169.98,5.88300638]
[1754504270041,41.4,169.99,169.97,5.94329512]
[1754504270209,41.4,169.99,169.98,0.67]
[1754504270411,45.35636211,169.99,169.98,0.67]
[1754504270746,45.35636211,169.99,169.98,6.55304506]
[1754504271119,41.4,169.99,169.98,6.55304506]
[1754504273722,47.50195266,170.0,169.98,6.55304506]
[1754504274941,47.50195266,170.0,169.99,0.67]
[1754504275149,51.45892324,170.0,169.97,0.06]
[1754504275320,47.50195266,170.0,169.97,0.73]
[1754504275738,6.07195266,169.99,169.97,0.06]
[1754504275945,3.95742637,169.99,169.98,0.67]
[1754504276128,67.4,169.99,169.98,0.67]
[1754504276845,67.4,169.99,169.98,0.73]
[1754504277150,26.0,169.99,169.98,6.61304506]
[1754504278053,26.68,169.99,169.98,0.06]
[1754504278430,29.95881348,169.99,169.98,6.61304506]
[1754504278631,41.43,170.0,169.98,6.61304506]
[1754504278980,0.03,170.0,169.98,6.61304506]
[1754504279126,3.98867054,170.0,169.99,0.67]
[1754504279327,15.13621557,170.0,169.99,0.67]
[1754504279549,15.13621557,170.0,169.98,0.06]
[1754504279960,56.53621557,170.0,169.98,0.06]
[1754504280546,62.60816823,170.0,169.98,0.06]
[1754504280862,3.95974125,169.99,169.98,0.06]
[1754504283068,31.70060846,169.99,169.98,0.06]
[1754504283264,25.6286558,169.99,169.98,0.06]
[1754504283567,31.70060846,169.99,169.98,0.06]
[1754504284355,25.6286558,169.99,169.98,0.06]
[1754504284558,31.02060846,169.99,169.98,0.06]
[1754504284950,31.70060846,169.99,169.98,0.06]
[1754504287951,31.9849316,169.99,169.98,0.06]
[1754504289545,15.39053871,169.98,169.97,0.06]
[1754504289869,78.34066542,169.98,169.97,0.06]
[1754504290070,72.70527768,169.98,169.97,0.06]
[1754504290253,73.38527768,169.98,169.97,0.06]
[1754504291377,78.33813959,169.98,169.97,0.06]
[1754504291947,78.33813959,169.98,169.96,0.06]
[1754504292152,26.10223262,169.97,169.96,0.06]
[1754504293165,36.93848571,169.97,169.96,0.06]
[1754504293572,31.9856238,169.97,169.96,0.06]
[1754504297190,31.3056238,169.97,169.96,0.06]
[1754504297367,24.949348,169.97,169.96,0.73]
[1754504297683,19.06595682,169.97,169.96,0.73]
[1754504298279,24.949348,169.97,169.96,0.73]
[1754504298487,19.06595682,169.97,169.96,0.73]
[1754504298780,31.02130066,169.97,169.96,0.73]
[1754504299193,25.13790948,169.97,169.96,0.73]
[1754504299577,3.95974125,169.97,169.96,0.73]
[1754504302665,3.95974125,169.97,169.96,12.68569]
[1754504302865,0.03,170.0,169.96,12.68569]
[1754504302866,3.95974125,169.99,169.96,12.68569]
[1754504303091,3.95974125,169.98,169.97,0.65]
[1754504303390,3.95974125,169.98,169.96,0.06]
[1754504303391,41.4,169.98,169.96,0.06]
[1754504303589,41.4,169.98,169.96,0.71]
[1754504303978,3.95930115,169.97,169.96,0.71]
[1754504305385,27.06155941,169.97,169.96,0.06]
[1754504305586,31.02131536,169.97,169.96,0.06]
[1754504308601,31.9656385,169.97,169.96,0.06]
[1754504308901,31.9656385,169.97,169.96,1e-08]
[1754504309197,15.39053871,169.96,169.95,0.06]
[1754504309395,72.43186428,169.96,169.95,1e-08]
[1754504309598,81.47371069,169.96,169.94,1e-08]
[1754504309771,26.08224732,169.95,169.94,1e-08]
[1754504310170,31.96633087,169.95,169.94,1e-08]
[1754504310383,26.0,169.91,169.87,0.06]
[1754504310674,26.0,169.88,169.87,0.06]
[1754504311001,67.4,169.88,169.87,0.06]
[1754504311585,67.4,169.88,169.87,0.71]
[1754504313602,67.4,169.91,169.87,12.66872921]
[1754504313790,67.4,169.91,169.88,6.07195266]
[1754504313980,67.4,169.91,169.87,5.94677655]
[1754504314179,67.4,169.91,169.89,0.65]
[1754504314575,67.4,169.91,169.89,6.53615251]
[1754504314773,41.4,169.91,169.89,6.53615251]
[1754504314998,41.4,169.91,169.89,5.88615251]
[1754504315184,41.4,169.92,169.9,0.65]
[1754504316506,41.4,169.92,169.91,0.65]
[1754504316714,3.95362698,169.92,169.89,0.65]
[1754504317004,41.4,169.92,169.9,0.65]
[1754504317593,6.07195266,169.93,169.9,6.53573967]
[1754504317914,41.4,169.92,169.89,5.886107]
[1754504318284,41.4,169.92,169.89,6.536107]
[1754504318777,41.4,169.92,169.9,0.65]
[1754504320694,41.4,169.92,169.91,0.65]
[1754504320879,41.4,169.92,169.89,0.65]
[1754504320880,45.35343162,169.92,169.89,0.65]
[1754504321079,41.4,169.92,169.89,0.65]
[1754504321302,41.4,169.92,169.9,0.65]
[1754504321820,145.93,169.94,169.91,6.07195266]
[1754504322105,145.93,169.94,169.93,11.95672874]
[1754504322106,0.03,169.94,169.93,11.95672874]
[1754504322416,0.03,169.94,169.93,12.60672874]
[1754504323209,0.03,169.94,169.93,6.53477608]
[1754504323419,0.03,169.94,169.93,12.60672874]
[1754504325778,0.03,169.94,169.93,6.53477608]
[1754504325977,0.03,169.94,169.93,12.60672874]
[1754504326384,0.03,169.94,169.93,6.53477608]
[1754504326688,0.03,169.94,169.93,12.60672874]
[1754504326888,0.03,169.94,169.92,6.07195266]
[1754504327114,0.03,169.94,169.91,6.72195266]
[1754504327308,0.03,169.94,169.92,0.65]
[1754504327684,0.03,169.94,169.92,6.72195266]
[1754504328199,0.03,169.94,169.93,6.72195266]
[1754504328606,0.03,169.94,169.93,0.65]
[1754504328787,0.03,169.94,169.91,5.88546728]
[1754504328989,0.03,169.94,169.92,6.07195266]
[1754504329584,0.03,169.94,169.92,6.75195266]
[1754504332624,0.03,169.94,169.92,0.68]
[1754504332836,3.98907691,169.94,169.92,6.75195266]
[1754504333417,10.58352706,169.94,169.9,0.68]
[1754504333625,145.9,169.93,169.9,0.68]
[1754504333841,145.9,169.93,169.89,6.07195266]
[1754504334015,145.9,169.93,169.89,6.75195266]
[1754504334520,145.9,169.92,169.9,0.68]
[1754504335748,145.9,169.92,169.89,6.07195266]
[1754504335749,145.9,169.92,169.89,11.95807051]
[1754504335927,145.9,169.92,169.91,6.75195266]
[1754504338433,0.03,169.94,169.91,6.75195266]
[1754504338624,3.98981569,169.94,169.91,6.75195266]
[1754504338943,9.87433275,169.94,169.91,6.75195266]
[1754504339113,3.95981569,169.93,169.91,6.75195266]
[1754504339442,3.95981569,169.92,169.89,6.07195266]
[1754504340335,3.95981569,169.92,169.9,6.75195266]
[1754504340535,3.95981569,169.92,169.89,5.8861216]
[1754504340536,41.38,169.93,169.91,6.75195266]
[1754504340723,15.13621557,169.94,169.91,6.75195266]
[1754504340923,3.95973804,169.93,169.91,6.75195266]
[1754504341541,3.95973804,169.93,169.92,0.68]
[1754504341731,3.98973804,169.94,169.92,0.68]
[1754504341928,3.98973804,169.94,169.91,6.07195266]
[1754504342130,4.69973804,169.94,169.9,6.75195266]
[1754504342514,4.69973804,169.94,169.92,0.06]
[1754504343036,3.95973804,169.93,169.92,0.06]
[1754504344517,10.55451412,169.93,169.92,0.06]
[1754504344716,51.93451412,169.93,169.92,0.06]
[1754504345143,73.39700549,169.93,169.92,0.06]
[1754504345327,41.10621557,169.89,169.87,0.06]
[1754504345532,66.51790627,169.88,169.87,0.06]
[1754504345750,67.22790627,169.88,169.87,0.06]
[1754504345931,61.15595361,169.88,169.87,0.06]
[1754504346130,67.22790627,169.88,169.87,0.06]
[1754504346631,73.11441439,169.88,169.87,0.06]
[1754504347133,29.95973804,169.88,169.87,0.74]
[1754504347339,3.95973804,169.88,169.87,0.74]
[1754504347542,3.95973804,169.88,169.87,0.06]
[1754504348047,41.38,169.89,169.87,0.06]
[1754504349546,48.16195266,169.89,169.87,0.06]
[1754504349742,3.96030005,169.88,169.87,0.06]
[1754504350043,10.74225271,169.88,169.87,0.06]
[1754504350348,25.84846828,169.88,169.87,0.06]
[1754504351223,32.01929954,169.88,169.87,0.06]
[1754504351424,26.13279142,169.88,169.87,0.06]
[1754504351940,36.80972838,169.88,169.87,0.06]
[1754504352129,41.76164039,169.88,169.87,0.06]
[1754504352948,31.27773993,169.86,169.85,1e-08]
[1754504353242,41.39053871,169.82,169.79,0.1]
[1754504353446,92.80279142,169.82,169.79,0.1]
[1754504353620,93.51279142,169.82,169.79,0.1]
[1754504355334,99.40137933,169.82,169.79,0.1]
[1754504355945,101.76216633,169.82,169.79,0.1]
[1754504356442,15.39053871,169.81,169.79,0.1]
[1754504356647,72.89474408,169.8,169.79,0.1]
[1754504356859,73.60474408,169.8,169.79,0.1]
[1754504357655,79.49402558,169.8,169.79,0.1]